[Event "Uhlenkoeper-Open 2024"]
[Site "Uelzen"]
[Date "2024.12.28"]
[Round "4.6"]
[White "Ritter, Uwe"]
[Black "Askerov, Imamali"]
[Result "0-1"]
[ECO "A32"]
[WhiteElo "1954"]
[BlackElo "2007"]
[Annotator "RC"]
[PlyCount "112"]
[EventDate "2024.12.27"]
[EventType "swiss"]
[EventCountry "GER"]
[SourceTitle "playchess.com"]
[Source "ChessBase"]
[SourceQuality "1"]
[TimeControl "40/5400+30:1800+30"]

1. Nf3 {[%emt 0:00:03]} Nf6 {[%emt 0:09:56]} 2. c4 {[%emt 0:00:10]} c5 {[%emt 0:00:23]} 3. Nc3 {[%emt 0:00:24]} e6 {[%emt 0:03:16]} 4. d4 {[%emt 0:00:56]} cxd4 {[%emt 0:00:09]} 5. Nxd4 {[%emt 0:00:03]} a6 {[%emt 0:00:45]} 6. g3 {[%emt 0:00:38]} Qc7 {[%emt 0:01:25]} 7. Bg2 {[%emt 0:03:54]} Qxc4 {[%emt 0:10:22]} 8. Bg5 {[%emt 0:01:09]} Nc6 {[%emt 0:10:57]} 9. Nb3 {[%emt 0:04:17]} Bb4 {[%emt 0:19:13]} 10. Rc1 {[%emt 0:01:09]} Ne4 {[%emt 0:06:31]} 11. Nd2 {[%emt 0:03:26]} Bxc3 {[%emt 0:15:16]} 12. bxc3 {[%emt 0:00:51]} Nxd2 {[%emt 0:00:51]} 13. Qxd2 {[%emt 0:00:22]} d5 {[%emt 0:03:47]} 14. O-O {[%emt 0:01:14]} O-O {[%emt 0:02:10]} 15. Rfe1 {[%emt 0:03:26]} f5 {[%emt 0:06:09]} 16. Bf1 {[%emt 0:00:30]} Qc5 {[%emt 0:01:34]} 17. Be3 {[%emt 0:01:11]} Qa5 {[%emt 0:01:10]} 18. c4 {[%emt 0:07:08]} Qxd2 {[%emt 0:01:27]} 19. Bxd2 {[%emt 0:00:02]} dxc4 {[%emt 0:01:26]} 20. Rxc4 {[%emt 0:00:32]} e5 {[%emt 0:00:35]} 21. Rb1 {[%emt 0:03:26]} Be6 {[%emt 0:01:13]} 22. Rc5 {[%emt 0:00:54]} Rf7 {[%emt 0:00:19]} 23. e4 {[%emt 0:02:23]} fxe4 {[%emt 0:00:58]} 24. a4 {[%emt 0:03:55]} Rd8 {[%emt 0:00:16]} 25. Be3 {[%emt 0:01:54]} Nd4 {[%emt 0:00:29]} 26. Rb6 {[%emt 0:01:45]} Ba2 {[%emt 0:01:41]} 27. Kg2 {[%emt 0:01:24]} Nf3 {[%emt 0:00:43]} 28. Be2 {[%emt 0:00:53]} h6 {[%emt 0:00:27]} 29. Rb4 {[%emt 0:03:17]} Bd5 {[%emt 0:00:38]} 30. Rxd5 {[%emt 0:05:24]} Rxd5 {[%emt 0:00:03]} 31. Bc4 {[%emt 0:00:08]} Ne1+ {[%emt 0:01:01]} 32. Kh3 {[%emt 0:01:34]} Nd3 {[%emt 0:00:28]} 33. Rxb7 {[%emt 0:00:29]} Rxb7 {[%emt 0:00:07]} 34. Bxd5+ {[%emt 0:00:02]} Rf7 {[%emt 0:00:07]} 35. Kg4 {[%emt 0:00:52]} g6 {[%emt 0:00:31]} 36. h4 {[%emt 0:01:53]} Kg7 {[%emt 0:00:40]} 37. Bxf7 {[%emt 0:00:07]} Kxf7 {[%emt 0:00:04]} 38. h5 {[%emt 0:01:21]} Kf6 {[%emt 0:00:49]} 39. hxg6 {[%emt 0:00:20]} Kxg6 {[%emt 0:00:05]} 40. a5 {[%emt 0:00:37]} Ne1 {[%emt 0:01:38]} 41. Bb6 {[%emt 0:33:58]} Nf3 {[%emt 0:12:32]} 42. Kh3 {[%emt 0:00:00]} Ng5+ {[%emt 0:02:36]} 43. Kg2 {[%emt 0:00:00]} Kf5 {[%emt 0:01:00]} 44. Kf1 {[%emt 0:00:00]} h5 {[%emt 0:02:18]} 45. Ke2 {[%emt 0:00:00]} Ke6 {[%emt 0:01:33]} 46. Ke3 {[%emt 0:00:00]} Kd5 {[%emt 0:00:39]} 47. Bd8 {[%emt 0:00:00]} Ne6 {[%emt 0:00:21]} 48. Bb6 {[%emt 0:00:00]} Ng7 {[%emt 0:00:25]} 49. Ke2 {[%emt 0:00:00]} Nf5 {[%emt 0:00:41]} 50. Be3 {[%emt 0:00:00]} Nd4+ {[%emt 0:02:35]} 51. Kd1 {[%emt 0:00:00]} Kc4 {[%emt 0:00:42]} 52. Bg5 {[%emt 0:00:00]} Kd3 {[%emt 0:02:46]} 53. Bd2 {[%emt 0:00:00]} Nf5 {[%emt 0:01:58]} 54. Be1 {[%emt 0:00:00]} e3 {[%emt 0:01:06]} 55. f3 {[%emt 0:00:00]} e2+ {[%emt 0:02:56]} 56. Kc1 {[%emt 0:00:00]} Nd4 {[%emt 0:00:36]} 0-1

[Event "Uhlenkoeper-Open 2024"]
[Site "Uelzen"]
[Date "2024.12.28"]
[Round "4.7"]
[White "Dehn, Marcus"]
[Black "Wilk, Clemens"]
[Result "1/2-1/2"]
[ECO "D12"]
[WhiteElo "2053"]
[BlackElo "1869"]
[Annotator "NA RC"]
[PlyCount "76"]
[EventDate "2024.12.27"]
[EventType "swiss"]
[EventCountry "GER"]
[SourceTitle "playchess.com"]
[Source "ChessBase"]
[SourceQuality "1"]
[TimeControl "40/5400+30:1800+30"]

1. d4 {[%emt 0:00:04]} d5 {[%emt 0:00:09]} 2. Nf3 {[%emt 0:00:11]} Nf6 {[%emt 0:00:07]} 3. e3 {[%emt 0:00:20]} Bf5 {[%emt 0:03:43]} 4. c4 {[%emt 0:03:36]} c6 {[%emt 0:02:58]} 5. Qb3 {[%emt 0:00:49]} Qb6 {[%emt 0:03:26]} 6. c5 {[%emt 0:05:33]} Qc7 {[%emt 0:03:03]} 7. Ne5 {[%emt 0:00:41]} Nbd7 {[%emt 0:04:44]} 8. f4 {[%emt 0:00:35]} h5 {[%emt 0:02:39]} 9. Nd2 {[%emt 0:03:30]} e6 {[%emt 0:06:39]} 10. Ndf3 {[%emt 0:01:41]} Nxe5 {[%emt 0:03:36]} 11. fxe5 {[%emt 0:01:31]} Ne4 {[%emt 0:02:04]} 12. Bd3 {[%emt 0:03:25]} Be7 {[%emt 0:03:19]} 13. Qc2 {[%emt 0:03:51]} g6 {[%emt 0:04:56]} 14. O-O {[%emt 0:02:45]} h4 {[%emt 0:01:18]} 15. b4 {[%emt 0:01:49]} a6 {[%emt 0:00:23]} 16. Bd2 {[%emt 0:02:35]} Ng5 {[%emt 0:10:09]} 17. a4 {[%emt 0:05:36]} Nxf3+ {[%emt 0:02:05]} 18. gxf3 {[%emt 0:00:58]} Bxd3 {[%emt 0:05:05]} 19. Qxd3 {[%emt 0:00:12]} Kf8 {[%emt 0:01:18]} 20. b5 {[%emt 0:09:37]} axb5 {[%emt 0:01:27]} 21. axb5 {[%emt 0:00:11]} Kg7 {[%emt 0:00:11]} 22. Rfb1 {[%emt 0:08:22]} Rhc8 {[%emt 0:12:06]} 23. Qb3 {[%emt 0:03:21]} Qd7 {[%emt 0:01:30]} 24. Kf2 {[%emt 0:04:11]} Bd8 {[%emt 0:03:24]} 25. Ke2 {[%emt 0:06:09]} Rxa1 {[%emt 0:04:16]} 26. Rxa1 {[%emt 0:00:17]} b6 {[%emt 0:00:11]} 27. cxb6 {[%emt 0:02:14]} cxb5 {[%emt 0:04:24]} 28. Ra5 {[%emt 0:03:52]} Bxb6 {[%emt 0:00:59]} 29. Rxb5 {[%emt 0:00:08]} Bd8 {[%emt 0:00:14]} 30. h3 {[%emt 0:04:15]} Qc6 {[%emt 0:02:38]} 31. Rc5 {[%emt 0:07:50]} Qd7 {[%emt 0:00:59]} 32. Rxc8 {[%emt 0:01:53]} Qxc8 {[%emt 0:00:09]} 33. Qb5 {[%emt 0:02:34]} Qc2 {[%emt 0:01:41]} 34. Qd3 {[%emt 0:01:07]} Qb2 {[%emt 0:00:47]} 35. Qc3 {[%emt 0:01:50]} Qb1 {[%emt 0:01:28]} 36. Qc8 {[%emt 0:03:28]} Qb5+ {[%emt 0:00:51]} 37. Ke1 {[%emt 0:00:56]} Ba5 {[%emt 0:01:35]} 38. Bxa5 {[%emt 0:04:40]} Qxa5+ {[%emt 0:00:09]} 1/2-1/2

[Event "Uhlenkoeper-Open 2024"]
[Site "Uelzen"]
[Date "2024.12.28"]
[Round "4.8"]
[White "Buergener, Richard"]
[Black "Tarasenko, Nazar"]
[Result "1-0"]
[ECO "B22"]
[WhiteElo "1857"]
[BlackElo "2011"]
[Annotator "NA RC"]
[PlyCount "46"]
[EventDate "2024.12.27"]
[EventType "swiss"]
[EventCountry "GER"]
[SourceTitle "playchess.com"]
[Source "ChessBase"]
[SourceQuality "1"]
[TimeControl "40/5400+30:1800+30"]

1. e4 {[%emt 0:00:03]} c5 {[%emt 0:00:04]} 2. c3 {[%emt 0:00:06]} d5 {[%emt 0:00:05]} 3. exd5 {[%emt 0:00:04]} Qxd5 {[%emt 0:00:00]} 4. d4 {[%emt 0:00:13]} Nf6 {[%emt 0:00:13]} 5. Nf3 {[%emt 0:00:18]} Bg4 {[%emt 0:00:36]} 6. Be2 {[%emt 0:00:16]} e6 {[%emt 0:01:22]} 7. O-O {[%emt 0:00:23]} Nc6 {[%emt 0:01:04]} 8. Be3 {[%emt 0:01:08]} cxd4 {[%emt 0:02:09]} 9. cxd4 {[%emt 0:00:15]} Qd6 {[%emt 0:00:54]} 10. Nc3 {[%emt 0:01:08]} Be7 {[%emt 0:01:40]} 11. Rc1 {[%emt 0:05:03]} O-O {[%emt 0:01:51]} 12. Qd2 {[%emt 0:07:04]} a6 {[%emt 0:06:07]} 13. Rfd1 {[%emt 0:07:45]} Rfd8 {[%emt 0:01:49]} 14. Bf4 {[%emt 0:07:46]} Qb4 {[%emt 0:02:13]} 15. a3 {[%emt 0:04:14]} Qb6 {[%emt 0:01:43]} 16. Be3 {[%emt 0:05:23]} Qa5 {[%emt 0:02:24]} 17. h3 {[%emt 0:07:07]} Bh5 {[%emt 0:00:12]} 18. Qc2 {[%emt 0:02:41]} Rac8 {[%emt 0:03:12]} 19. Qb3 {[%emt 0:05:03]} Rd7 {[%emt 0:04:38]} 20. d5 {[%emt 0:13:07]} Nxd5 {[%emt 0:00:23]} 21. Nxd5 {[%emt 0:00:22]} Rxd5 {[%emt 0:00:24]} 22. Rxd5 {[%emt 0:05:59]} Qxd5 {[%emt 0:01:29]} 23. Qxb7 {[%emt 0:00:18]} Qd8 {[%emt 1:07:28]} 1-0

[Event "Uhlenkoeper-Open 2024"]
[Site "Uelzen"]
[Date "2024.12.28"]
[Round "4.9"]
[White "Martin, Dennis"]
[Black "Sviridov, Vitaliy"]
[Result "1-0"]
[ECO "E06"]
[WhiteElo "2005"]
[BlackElo "1777"]
[Annotator "RC"]
[PlyCount "155"]
[EventDate "2024.12.27"]
[EventType "swiss"]
[EventCountry "GER"]
[SourceTitle "playchess.com"]
[Source "ChessBase"]
[SourceQuality "1"]
[TimeControl "40/5400+30:1800+30"]

1. d4 {[%emt 0:00:02]} d5 {[%emt 0:00:13]} 2. c4 {[%emt 0:00:02]} e6 {[%emt 0:00:12]} 3. Nf3 {[%emt 0:00:02]} Nf6 {[%emt 0:00:04]} 4. g3 {[%emt 0:00:07]} Be7 {[%emt 0:00:17]} 5. Bg2 {[%emt 0:00:02]} O-O {[%emt 0:00:14]} 6. O-O {[%emt 0:00:03]} b6 {[%emt 0:01:48]} 7. cxd5 {[%emt 0:00:03]} exd5 {[%emt 0:00:31]} 8. Nc3 {[%emt 0:00:04]} Be6 {[%emt 0:01:53]} 9. Ng5 {[%emt 0:01:06]} h6 {[%emt 0:08:56]} 10. Nxe6 {[%emt 0:00:41]} fxe6 {[%emt 0:00:03]} 11. Qb3 {[%emt 0:02:34]} Nc6 {[%emt 0:02:07]} 12. Rd1 {[%emt 0:02:03]} Bd6 {[%emt 0:00:17]} 13. e4 {[%emt 0:01:00]} Na5 {[%emt 0:02:23]} 14. Qc2 {[%emt 0:00:03]} dxe4 {[%emt 0:00:19]} 15. Nxe4 {[%emt 0:00:03]} Rb8 {[%emt 0:02:31]} 16. Nxd6 {[%emt 0:01:01]} cxd6 {[%emt 0:01:55]} 17. Re1 {[%emt 0:00:44]} Qd7 {[%emt 0:04:19]} 18. b4 {[%emt 0:04:30]} Nb7 {[%emt 0:03:03]} 19. Bh3 {[%emt 0:01:54]} Rbe8 {[%emt 0:02:41]} 20. Qe2 {[%emt 0:06:43]} Nd8 {[%emt 0:01:26]} 21. Bb2 {[%emt 0:01:51]} Nd5 {[%emt 0:03:40]} 22. Qc4 {[%emt 0:04:45]} Qf7 {[%emt 0:01:43]} 23. Re2 {[%emt 0:02:37]} Qg6 {[%emt 0:01:31]} 24. Bg2 {[%emt 0:01:44]} Nf6 {[%emt 0:02:03]} 25. Qc7 {[%emt 0:01:27]} Rf7 {[%emt 0:09:55]} 26. Qxd6 {[%emt 0:03:33]} Ref8 {[%emt 0:00:48]} 27. h3 {[%emt 0:06:34]} Rd7 {[%emt 0:08:10]} 28. Qe5 {[%emt 0:00:39]} Nd5 {[%emt 0:01:40]} 29. a3 {[%emt 0:02:02]} Rf6 {[%emt 0:01:24]} 30. Rae1 {[%emt 0:01:19]} Nc7 {[%emt 0:02:29]} 31. Qe3 {[%emt 0:03:39]} Qf7 {[%emt 0:02:22]} 32. d5 {[%emt 0:01:09]} Rg6 {[%emt 0:02:40]} 33. dxe6 {[%emt 0:07:58]} Rxe6 {[%emt 0:02:00]} 34. Qf3 {[%emt 0:01:17]} Qg6 {[%emt 0:01:35]} 35. Qb3 {[%emt 0:01:34]} Kh8 {[%emt 0:00:40]} 36. Rxe6 {[%emt 0:01:30]} Ndxe6 {[%emt 0:01:28]} 37. Qc3 {[%emt 0:01:56]} h5 {[%emt 0:01:33]} 38. Qc6 {[%emt 0:03:56]} Rf7 {[%emt 0:00:51]} 39. Be5 {[%emt 0:02:58]} Qf5 {[%emt 0:01:19]} 40. Kh2 {[%emt 0:00:33]} Nd8 {[%emt 0:02:21]} 41. Qc4 {[%emt 0:35:03]} Nce6 {[%emt 0:31:13]} 42. f4 {[%emt 0:01:12]} Rd7 {[%emt 0:04:35]} 43. Be4 {[%emt 0:04:46]} Qf7 {[%emt 0:07:58]} 44. Bc3 {[%emt 0:01:32]} Rc7 {[%emt 0:02:29]} 45. Qb3 {[%emt 0:00:26]} Re7 {[%emt 0:01:56]} 46. Bd5 {[%emt 0:00:42]} Qe8 {[%emt 0:04:27]} 47. Qb2 {[%emt 0:02:19]} Qd7 {[%emt 0:02:24]} 48. Re5 {[%emt 0:00:06]} h4 {[%emt 0:01:46]} 49. Rh5+ {[%emt 0:03:51]} Kg8 {[%emt 0:00:02]} 50. Qc2 {[%emt 0:00:17]} hxg3+ {[%emt 0:00:23]} 51. Kxg3 {[%emt 0:00:09]} Nf7 {[%emt 0:00:00]} 52. Qg6 {[%emt 0:00:00]} Qc7 {[%emt 0:00:00]} 53. Be5 {[%emt 0:00:00]} Qc1 {[%emt 0:00:00]} 54. Qe4 {[%emt 0:00:00]} Qxa3+ {[%emt 0:00:00]} 55. Kh4 {[%emt 0:00:00]} Qc1 {[%emt 0:00:00]} 56. Bxe6 {[%emt 0:00:00]} Rxe6 {[%emt 0:00:00]} 57. Qa8+ {[%emt 0:00:00]} Nd8 {[%emt 0:00:00]} 58. Qxd8+ {[%emt 0:00:00]} Kf7 {[%emt 0:00:00]} 59. Qc7+ {[%emt 0:00:00]} Qxc7 {[%emt 0:00:00]} 60. Bxc7 {[%emt 0:00:00]} Re4 {[%emt 0:00:00]} 61. Rf5+ {[%emt 0:00:00]} Kg6 {[%emt 0:00:00]} 62. Rg5+ {[%emt 0:00:00]} Kf6 {[%emt 0:00:00]} 63. Be5+ {[%emt 0:00:00]} Ke6 {[%emt 0:00:00]} 64. b5 {[%emt 0:00:00]} Ra4 {[%emt 0:00:00]} 65. Kg4 {[%emt 0:00:00]} a5 {[%emt 0:00:00]} 66. bxa6 {[%emt 0:00:00]} b5 {[%emt 0:00:00]} 67. Bxg7 {[%emt 0:00:00]} b4 {[%emt 0:00:00]} 68. Bd4 {[%emt 0:00:00]} b3 {[%emt 0:00:00]} 69. a7 {[%emt 0:00:00]} Kf7 {[%emt 0:00:00]} 70. h4 {[%emt 0:00:00]} b2 {[%emt 0:00:00]} 71. Bxb2 {[%emt 0:00:00]} Ra2 {[%emt 0:00:00]} 72. h5 {[%emt 0:00:00]} Ra6 {[%emt 0:00:00]} 73. h6 {[%emt 0:00:00]} Ra2 {[%emt 0:00:00]} 74. h7 {[%emt 0:00:00]} Rxb2 {[%emt 0:00:00]} 75. a8=Q {[%emt 0:00:00]} Rg2+ {[%emt 0:00:00]} 76. Kf5 {[%emt 0:00:00]} Rf2 {[%emt 0:00:00]} 77. Qb7+ {[%emt 0:00:05]} Kf8 {[%emt 0:00:00]} 78. Rg8# {[%emt 0:00:02]} 1-0

[Event "Uhlenkoeper-Open 2024"]
[Site "Uelzen"]
[Date "2024.12.28"]
[Round "4.10"]
[White "Krueger, Daniel"]
[Black "Raddatz, Michael"]
[Result "1-0"]
[ECO "B22"]
[WhiteElo "1858"]
[BlackElo "1927"]
[Annotator "NA"]
[PlyCount "149"]
[EventDate "2024.12.27"]
[EventType "swiss"]
[EventCountry "GER"]
[SourceTitle "playchess.com"]
[Source "ChessBase"]
[SourceQuality "1"]
[TimeControl "40/5400+30:1800+30"]

1. e4 {[%emt 0:00:10]} c5 {[%emt 0:00:16]} 2. Nf3 {[%emt 0:00:11]} Nc6 {[%emt 0:00:08]} 3. c3 {[%emt 0:01:02]} Nf6 {[%emt 0:00:48]} 4. e5 {[%emt 0:00:05]} Nd5 {[%emt 0:00:19]} 5. d4 {[%emt 0:00:05]} cxd4 {[%emt 0:00:21]} 6. cxd4 {[%emt 0:00:06]} e6 {[%emt 0:00:40]} 7. Bd3 {[%emt 0:02:55]} Qb6 {[%emt 0:01:36]} 8. Nbd2 {[%emt 0:15:47]} Nxd4 {[%emt 0:01:06]} 9. Nc4 {[%emt 0:00:34]} Nxf3+ {[%emt 0:00:19]} 10. Qxf3 {[%emt 0:00:17]} Qc7 {[%emt 0:02:16]} 11. Qg3 {[%emt 0:04:30]} Nb4 {[%emt 0:06:37]} 12. O-O {[%emt 0:01:08]} Nxd3 {[%emt 0:06:15]} 13. Qxd3 {[%emt 0:00:06]} b6 {[%emt 0:00:59]} 14. Nd6+ {[%emt 0:04:40]} Bxd6 {[%emt 0:00:13]} 15. exd6 {[%emt 0:00:12]} Qc6 {[%emt 0:00:30]} 16. Bf4 {[%emt 0:00:56]} Bb7 {[%emt 0:00:48]} 17. Qg3 {[%emt 0:00:25]} O-O {[%emt 0:03:15]} 18. Rac1 {[%emt 0:00:20]} Qe4 {[%emt 0:02:42]} 19. Rc3 {[%emt 0:10:29]} Rac8 {[%emt 0:02:15]} 20. Re3 {[%emt 0:00:34]} Qg6 {[%emt 0:00:33]} 21. Qh3 {[%emt 0:00:34]} Rc5 {[%emt 0:02:47]} 22. Rg3 {[%emt 0:16:24]} Qh5 {[%emt 0:03:25]} 23. Bh6 {[%emt 0:01:37]} Qxh3 {[%emt 0:01:31]} 24. gxh3 {[%emt 0:00:17]} f5 {[%emt 0:07:54]} 25. Rxg7+ {[%emt 0:09:02]} Kh8 {[%emt 0:00:10]} 26. Rg3 {[%emt 0:01:14]} Rg8 {[%emt 0:01:38]} 27. Rc1 {[%emt 0:00:22]} Rg6 {[%emt 0:05:48]} 28. Rxc5 {[%emt 0:01:16]} bxc5 {[%emt 0:00:44]} 29. Be3 {[%emt 0:00:30]} Kg7 {[%emt 0:12:45]} 30. Bxc5 {[%emt 0:03:41]} a6 {[%emt 0:00:41]} 31. Bd4+ {[%emt 0:02:01]} Kf7 {[%emt 0:00:14]} 32. f4 {[%emt 0:00:32]} Rg8 {[%emt 0:03:04]} 33. Kf2 {[%emt 0:01:20]} Bc6 {[%emt 0:01:33]} 34. Ke3 {[%emt 0:01:31]} Bg2 {[%emt 0:04:35]} 35. Kd3 {[%emt 0:08:26]} Bf1+ {[%emt 0:00:37]} 36. Kd2 {[%emt 0:01:27]} Rxg3 {[%emt 0:09:47]} 37. hxg3 {[%emt 0:00:08]} Bxh3 {[%emt 0:00:24]} 38. Kc3 {[%emt 0:00:09]} Bf1 {[%emt 0:01:18]} 39. Kb4 {[%emt 0:03:10]} h5 {[%emt 0:05:56]} 40. Ka5 {[%emt 0:01:15]} Ke8 {[%emt 0:06:46]} 41. Bf6 {[%emt 0:30:41]} Kf7 {[%emt 0:30:50]} 42. Bh4 {[%emt 0:09:50]} e5 {[%emt 0:03:31]} 43. fxe5 {[%emt 0:00:16]} Ke6 {[%emt 0:00:07]} 44. Bf6 {[%emt 0:00:06]} Bd3 {[%emt 0:01:08]} 45. Kb4 {[%emt 0:00:00]} Kd5 {[%emt 0:00:00]} 46. Kc3 {[%emt 0:00:00]} Bb1 {[%emt 0:00:00]} 47. b3 {[%emt 0:00:00]} Be4 {[%emt 0:00:00]} 48. a4 {[%emt 0:00:00]} Bf3 {[%emt 0:00:00]} 49. Kd2 {[%emt 0:00:00]} Be4 {[%emt 0:00:00]} 50. b4 {[%emt 0:00:00]} Bf3 {[%emt 0:00:00]} 51. b5 {[%emt 0:00:00]} axb5 {[%emt 0:00:00]} 52. axb5 {[%emt 0:00:00]} Bg2 {[%emt 0:00:00]} 53. Kc3 {[%emt 0:00:00]} Ke6 {[%emt 0:00:00]} 54. Kd4 {[%emt 0:00:00]} Bf1 {[%emt 0:00:00]} 55. b6 {[%emt 0:00:00]} Ba6 {[%emt 0:00:00]} 56. Ke3 {[%emt 0:00:06]} Bb7 {[%emt 0:00:00]} 57. Kf4 {[%emt 0:00:13]} Bc6 {[%emt 0:00:00]} 58. Kg5 {[%emt 0:00:13]} Bf3 {[%emt 0:00:00]} 59. Bh8 {[%emt 0:00:08]} Bb7 {[%emt 0:00:00]} 60. Kxh5 {[%emt 0:00:55]} Be4 {[%emt 0:00:00]} 61. Bf6 {[%emt 0:02:04]} Kf7 {[%emt 0:00:00]} 62. Bg5 {[%emt 0:01:46]} Bf3+ {[%emt 0:00:00]} 63. Kh6 {[%emt 0:00:21]} Be4 {[%emt 0:00:00]} 64. Bf4 $18 {[%emt 0:00:22]} Bf3 {[%emt 0:01:03]} 65. Kg5 {[%emt 0:00:48]} Be4 {[%emt 0:00:14]} 66. Be3 {[%emt 0:00:19]} Ke6 {[%emt 0:00:13]} 67. Bd4 {[%emt 0:01:15]} Kf7 {[%emt 0:02:15]} 68. Kf4 {[%emt 0:00:16]} Bg2 {[%emt 0:01:55]} 69. Kxf5 {[%emt 0:00:17]} Bd5 {[%emt 0:00:48]} 70. Kg5 {[%emt 0:00:24]} Bc6 {[%emt 0:00:39]} 71. Kh6 {[%emt 0:00:15]} Ke6 {[%emt 0:00:52]} 72. Kg7 {[%emt 0:02:11]} Kd5 {[%emt 0:01:37]} 73. Kf6 {[%emt 0:00:37]} Bb7 {[%emt 0:00:45]} 74. e6 {[%emt 0:00:33]} Kxd6 {[%emt 0:00:25]} 75. e7 {[%emt 0:00:12]} 1-0

[Event "Uhlenkoeper-Open 2024"]
[Site "Uelzen"]
[Date "2024.12.29"]
[Round "5.1"]
[White "Stelmaszyk, Nico"]
[Black "Bagrationi, Alexander"]
[Result "0-1"]
[ECO "B22"]
[WhiteElo "2403"]
[BlackElo "2384"]
[Annotator "TA"]
[PlyCount "98"]
[EventDate "2024.12.27"]
[EventType "swiss"]
[EventCountry "GER"]
[SourceTitle "playchess.com"]
[Source "ChessBase"]
[SourceQuality "1"]
[TimeControl "40/5400+30:1800+30"]

{[%evp 9,98,30,13,18,19,31,22,22,20,25,29,24,14,11,32,8,29,19,32,0,0,-28,-9,-68,-17,-159,-154,-150,-160,-149,-160,-150,-153,-136,-136,-197,-168,-194,-185,-276,-182,-183,-186,-221,-194,-289,-278,-320,-315,-354,-341,-379,-378,-419,-337,-293,-312,-314,-307,-444,-455,-452,-447,-470,-470,-518,-529,-683,-638,-837,-813,-789,-562,-1182,-977,-946,-921,-2855,-2982,-2999,-2666,-2885,-2859,-29994,-1720,-29972,-29972,-29986,-29987,-29992,-29992]} 1. e4 {[%emt 0:00:04]} c5 {[%emt 0:00:14]} 2. c3 {[%emt 0:00:05]} d5 {[%emt 0:00:21]} 3. exd5 {[%emt 0:00:05]} Nf6 {[%emt 0:00:07]} 4. Bb5+ {[%emt 0:00:04]} Nbd7 {[%emt 0:00:18]} 5. d4 {[%emt 0:00:07]} a6 {[%emt 0:02:28]} 6. Be2 {[%emt 0:00:07]} Nxd5 {[%emt 0:01:49]} 7. Nf3 {[%emt 0:00:05]} e6 {[%emt 0:01:55]} 8. O-O {[%emt 0:00:17]} Be7 {[%emt 0:01:05]} 9. c4 {[%emt 0:02:42]} N5f6 {[%emt 0:04:32]} 10. Nc3 {[%emt 0:00:53]} Qc7 {[%emt 0:02:03] Prevents Bf4.} 11. dxc5 {[%emt 0:11:00]} Bxc5 {[%emt 0:01:13]} 12. a3 {[%emt 0:01:55]} b6 {[%emt 0:06:19]} 13. b4 {[%emt 0:06:13]} Bd6 {[%emt 0:00:48]} 14. h3 {[%emt 0:01:25]} Bb7 {[%emt 0:00:32]} 15. Nd4 {[%emt 0:27:42]} Rd8 {[%emt 0:06:31][%cal Ob6b5]} 16. f4 {[%emt 0:07:25]} ({White should play} 16. Be3 $11) 16... O-O {[%emt 0:15:28]} (16... Ne5 $1 $15 17. fxe5 Bxe5) 17. Ndb5 {[%emt 0:05:36]} axb5 $17 {[%emt 0:01:16]} 18. Nxb5 {[%emt 0:00:20]} Qc6 {[%emt 0:01:13][%csl Gb7][%cal Rc6g2]} 19. Bf3 {[%emt 0:00:21]} Ne4 {[%emt 0:00:27][%cal Od7e5]} (19... Qxc4 20. Nxd6 Bxf3 21. Nxc4 $14 (21. Rxf3 Qc7 $11)) 20. Nxd6 {[%emt 0:09:11]} Qxd6 {[%emt 0:00:12]} 21. Bxe4 {[%emt 0:00:21]} Qxd1 {[%emt 0:00:10]} 22. Rxd1 {[%emt 0:00:23]} (22. Bxh7+ $17 Kxh7 23. Rxd1) 22... Bxe4 $19 {[%emt 0:00:06]} 23. Be3 {[%emt 0:00:05]} f5 {[%emt 0:01:55]} 24. Rd6 {[%emt 0:04:40]} (24. a4) 24... Kf7 {[%emt 0:00:27]} 25. Rad1 {[%emt 0:00:38]} Ke7 {[%emt 0:00:49]} 26. R6d2 {[%emt 0:01:59]} Bc6 {[%emt 0:03:54]} 27. Rd3 {[%emt 0:08:22]} (27. b5 $142 Be4 28. a4) 27... Ba4 {[%emt 0:01:08]} 28. R1d2 {[%emt 0:00:10]} Rc8 {[%emt 0:01:12]} 29. b5 {[%emt 0:01:08]} Rc7 {[%emt 0:01:06][%cal Od7c5]} 30. Rd6 {[%emt 0:02:24]} Rb8 {[%emt 0:01:14]} 31. Bd4 {[%emt 0:01:50]} g6 {[%emt 0:09:17][%cal Oc7c4]} (31... Kxd6 32. Bxb6+ Ke7 33. Bxc7 $17) 32. Bf2 {[%emt 0:00:41]} Rbb7 {[%emt 0:00:28]} 33. Bh4+ {[%emt 0:00:45] [#]} Nf6 $1 {[%emt 0:02:07]} 34. Rd8 {[%emt 0:00:29]} (34. Bxf6+ {was worth a try.} Kxf6 35. Re2) 34... Rxc4 {[%emt 0:03:36]} 35. Rh8 {[%emt 0:02:15]} Kf7 {[%emt 0:01:16]} (35... Bxb5 $2 {loses.} 36. Rxh7+ Ke8 37. Rxb7 $18) 36. Rdd8 {[%emt 0:00:06]} Kg7 {[%emt 0:00:21]} (36... Bxb5 37. Rdf8+ Kg7 38. Bxf6+ Kh6 39. Bg5+ Kh5 40. Rb8 $14) 37. Bg5 {[%emt 0:00:11]} Rf7 {[%emt 0:01:43] Inhibits Rdf8.} ({Not} 37... Bxb5 38. Rdf8 $15) 38. Kf2 {[%emt 0:01:44]} Bxb5 {[%emt 0:00:28] Strongly threatening ...Rc2+.} 39. Kg3 {[%emt 0:00:10]} Bc6 {[%emt 0:03:07]} 40. Rc8 {[%emt 0:01:12]} Bd5 {[%emt 0:00:23]} 41. Rb8 {[%emt 0:30:43]} Rc3+ {[%emt 0:30:47]} 42. Kf2 {[%emt 0:00:31]} Rc2+ {[%emt 0:00:19]} 43. Kg3 {[%emt 0:00:07]} Rxg2+ {[%emt 0:00:36]} 44. Kh4 {[%emt 0:00:05]} Ra2 {[%emt 0:00:15]} 45. Kg3 {[%emt 0:00:17]} Rxa3+ {[%emt 0:00:09]} 46. Kh4 {[%emt 0:00:05]} Ra2 {[%emt 0:00:20]} (46... Bg2 $142 47. Rbg8+ Nxg8 48. Bh6+ Kxh8 49. Kg5 Rg3+ (49... Rxh3 50. Bg7+ Kxg7 $11) 50. Kh4 Rxh3+ 51. Kg5 Rh5#) 47. Rhd8 {[%emt 0:01:35]} h6 {[%emt 0:00:47]} 48. Rh8 {[%emt 0:00:20]} hxg5+ {[%emt 0:01:04]} 49. Kxg5 {[%emt 0:00:07]} Nh7+ {[%emt 0:00:28]} 0-1